[Event "*** Titled Tuesday Blitz"]
[Site "Chess.com"]
[Date "2021.03.09"]
[Round "3"]
[White "kirillshevchenko"]
[Black "Balla_Tamas"]
[Result "0-1"]
[WhiteElo "2823"]
[BlackElo "2480"]
[TimeControl "180+1"]
[EndTime "10:32:28 PST"]
[Termination "Balla_Tamas won on time"]

1. Nf3 {[%clk 0:03:00.9]} 1... c5 {[%clk 0:02:59.1]} 2. g3 {[%clk 0:02:59.3]}
2... Nc6 {[%clk 0:02:58.4]} 3. Bg2 {[%clk 0:02:59.9]} 3... g6 {[%clk 0:02:58.4]}
4. O-O {[%clk 0:02:52.6]} 4... Bg7 {[%clk 0:02:58.5]} 5. d3 {[%clk 0:02:53.3]}
5... d6 {[%clk 0:02:55.5]} 6. Nbd2 {[%clk 0:02:52.4]} 6... e6 {[%clk 0:02:48.3]}
7. e4 {[%clk 0:02:52]} 7... Nge7 {[%clk 0:02:48.4]} 8. c3 {[%clk 0:02:51.8]}
8... b5 {[%clk 0:02:48.4]} 9. Qc2 {[%clk 0:02:40]} 9... a5 {[%clk 0:02:47.5]}
10. a4 {[%clk 0:02:39.5]} 10... b4 {[%clk 0:02:45.9]} 11. Nc4 {[%clk 0:02:39.9]}
11... Ba6 {[%clk 0:02:42.9]} 12. Bf4 {[%clk 0:02:31.8]} 12... e5 {[%clk
0:02:26.4]} 13. Bg5 {[%clk 0:02:29.4]} 13... f6 {[%clk 0:02:20.9]} 14. Be3
{[%clk 0:02:07.1]} 14... O-O {[%clk 0:02:20.5]} 15. Nfd2 {[%clk 0:02:06.7]}
15... f5 {[%clk 0:02:11.7]} 16. exf5 {[%clk 0:01:59.9]} 16... gxf5 {[%clk
0:02:11.3]} 17. f4 {[%clk 0:01:53.5]} 17... Rc8 {[%clk 0:01:24.5]} 18. Rfe1
{[%clk 0:01:37.5]} 18... Kh8 {[%clk 0:00:55.9]} 19. Rad1 {[%clk 0:01:34.2]}
19... Ng6 {[%clk 0:00:46.4]} 20. fxe5 {[%clk 0:01:07.2]} 20... Ncxe5 {[%clk
0:00:42.6]} 21. Nf3 {[%clk 0:00:38.1]} 21... Nxc4 {[%clk 0:00:33.4]} 22. dxc4
{[%clk 0:00:39]} 22... Bxc4 {[%clk 0:00:33.5]} 23. Ng5 {[%clk 0:00:38.2]} 23...
b3 {[%clk 0:00:24.6]} 24. Qd2 {[%clk 0:00:37.3]} 24... Qf6 {[%clk 0:00:17.6]}
25. Qxd6 {[%clk 0:00:35]} 25... Qxd6 {[%clk 0:00:17.4]} 26. Rxd6 {[%clk
0:00:35.9]} 26... f4 {[%clk 0:00:17.9]} 27. gxf4 {[%clk 0:00:26.3]} 27... Nxf4
{[%clk 0:00:17.8]} 28. Be4 {[%clk 0:00:26.9]} 28... Rce8 {[%clk 0:00:15.4]} 29.
Bxc5 {[%clk 0:00:14.6]} 29... Ne2+ {[%clk 0:00:13]} 30. Kg2 {[%clk 0:00:14.9]}
30... h6 {[%clk 0:00:12.6]} 31. Rd2 {[%clk 0:00:11.3]} 31... Nf4+ {[%clk
0:00:10.5]} 32. Kg3 {[%clk 0:00:09.6]} 32... hxg5 {[%clk 0:00:11.4]} 33. Bxf8
{[%clk 0:00:09.6]} 33... Rxf8 {[%clk 0:00:11.5]} 34. Rd7 {[%clk 0:00:04.6]}
34... Be6 {[%clk 0:00:11]} 35. Rb7 {[%clk 0:00:03.5]} 35... Nh5+ {[%clk
0:00:10.8]} 36. Kg2 {[%clk 0:00:03.6]} 36... Nf4+ {[%clk 0:00:10.9]} 37. Kg3
{[%clk 0:00:04]} 37... Nh5+ {[%clk 0:00:10.9]} 38. Kg2 {[%clk 0:00:04.5]} 38...
Nf4+ {[%clk 0:00:10.6]} 39. Kh1 {[%clk 0:00:04.7]} 39... Nh3 {[%clk 0:00:09.6]}
40. Rb6 {[%clk 0:00:03.4]} 40... Nf2+ {[%clk 0:00:09.4]} 41. Kg2 {[%clk
0:00:03.3]} 41... Nxe4 {[%clk 0:00:09.6]} 42. Rxe6 {[%clk 0:00:03.6]} 42... Nc5
{[%clk 0:00:07.1]} 43. Rb6 {[%clk 0:00:02.1]} 43... Nxa4 {[%clk 0:00:06.4]} 44.
Rxb3 {[%clk 0:00:02.4]} 44... Nc5 {[%clk 0:00:06.1]} 45. Rb5 {[%clk 0:00:02.9]}
45... Nd3 {[%clk 0:00:06.8]} 46. Re7 {[%clk 0:00:02.3]} 46... Nf4+ {[%clk
0:00:06.5]} 47. Kg3 {[%clk 0:00:02.5]} 47... Bf6 {[%clk 0:00:06.9]} 48. Rd7
{[%clk 0:00:02]} 48... Ne6 {[%clk 0:00:06.8]} 49. Rbb7 {[%clk 0:00:02]} 49...
Ng7 {[%clk 0:00:06.3]} 50. Rd5 {[%clk 0:00:01.7]} 50... Kh7 {[%clk 0:00:05.5]}
51. Kf3 {[%clk 0:00:02.3]} 51... Kg6 {[%clk 0:00:06.4]} 52. Ke4 {[%clk
0:00:02.6]} 52... Re8+ {[%clk 0:00:05.9]} 53. Kd3 {[%clk 0:00:03.1]} 53... Re1
{[%clk 0:00:05.5]} 54. Rxa5 {[%clk 0:00:03.4]} 54... Rh1 {[%clk 0:00:06]} 55.
Ra6 {[%clk 0:00:02.4]} 55... Rxh2 {[%clk 0:00:06]} 56. b4 {[%clk 0:00:03]} 56...
Rh3+ {[%clk 0:00:06.8]} 57. Kd2 {[%clk 0:00:02.2]} 57... Nf5 {[%clk 0:00:05.8]}
58. b5 {[%clk 0:00:02.5]} 58... Rh2+ {[%clk 0:00:05.5]} 59. Kd3 {[%clk
0:00:02.6]} 59... Rh3+ {[%clk 0:00:05.2]} 60. Kd2 {[%clk 0:00:02.9]} 60... Ne3
{[%clk 0:00:05.6]} 61. Rc6 {[%clk 0:00:01.8]} 61... Nd5 {[%clk 0:00:05.2]} 62.
b6 {[%clk 0:00:02.1]} 62... Kf5 {[%clk 0:00:05.2]} 63. Rd7 {[%clk 0:00:02.5]}
63... Bxc3+ {[%clk 0:00:04.7]} 64. Ke2 {[%clk 0:00:02.2]} 64... Nxb6 {[%clk
0:00:05.1]} 65. Rxb6 {[%clk 0:00:01.5]} 65... Be5 {[%clk 0:00:06]} 66. Rb5
{[%clk 0:00:01.8]} 66... Rh4 {[%clk 0:00:06.3]} 67. Re7 {[%clk 0:00:01.8]} 67...
Re4+ {[%clk 0:00:07.1]} 68. Kd3 {[%clk 0:00:02.4]} 68... Rd4+ {[%clk 0:00:06.9]}
69. Ke3 {[%clk 0:00:02.6]} 69... Re4+ {[%clk 0:00:07.2]} 70. Kf2 {[%clk
0:00:03.2]} 70... Rf4+ {[%clk 0:00:07.3]} 71. Ke1 {[%clk 0:00:03.5]} 71... Re4+
{[%clk 0:00:07.7]} 72. Kd1 {[%clk 0:00:04.2]} 72... Rd4+ {[%clk 0:00:07.7]} 73.
Kc2 {[%clk 0:00:04.8]} 73... Rc4+ {[%clk 0:00:07.7]} 74. Kb3 {[%clk 0:00:04.4]}
74... Re4 {[%clk 0:00:07.6]} 75. Rf7+ {[%clk 0:00:04.2]} 75... Kg4 {[%clk
0:00:07.2]} 76. Rd5 {[%clk 0:00:01.8]} 76... Bf4 {[%clk 0:00:07.2]} 77. Kc2
{[%clk 0:00:02]} 77... Re3 {[%clk 0:00:07.5]} 78. Rdd7 {[%clk 0:00:01.9]} 78...
Rg3 {[%clk 0:00:07.9]} 79. Rg7 {[%clk 0:00:02.3]} 79... Kf3 {[%clk 0:00:08.1]}
80. Kd1 {[%clk 0:00:02.4]} 80... Kg4 {[%clk 0:00:08.4]} 81. Ke2 {[%clk
0:00:02.6]} 81... Re3+ {[%clk 0:00:08.4]} 82. Kf2 {[%clk 0:00:02.8]} 82... Rf3+
{[%clk 0:00:08.5]} 83. Ke2 {[%clk 0:00:02.9]} 83... Re3+ {[%clk 0:00:08.6]} 84.
Kd1 {[%clk 0:00:03.5]} 84... Rg3 {[%clk 0:00:07.4]} 85. Rgf7 {[%clk 0:00:02.9]}
85... Re3 {[%clk 0:00:06.7]} 86. Rd2 {[%clk 0:00:02.4]} 86... Rg3 {[%clk
0:00:05.9]} 87. Re2 {[%clk 0:00:02.8]} 87... Rd3+ {[%clk 0:00:05.4]} 88. Kc2
{[%clk 0:00:02.8]} 88... Rg3 {[%clk 0:00:04.1]} 89. Rd7 {[%clk 0:00:03.1]} 89...
Kf3 {[%clk 0:00:04.3]} 90. Re6 {[%clk 0:00:02.3]} 90... Kg4 {[%clk 0:00:05.2]}
91. Kd1 {[%clk 0:00:02.2]} 91... Rg2 {[%clk 0:00:05.5]} 92. Re1 {[%clk
0:00:02.6]} 92... Rg3 {[%clk 0:00:05.1]} 93. Re2 {[%clk 0:00:02.4]} 93... Rf3
{[%clk 0:00:06]} 94. Rd4 {[%clk 0:00:02.1]} 94... Rg3 {[%clk 0:00:06.9]} 95. Ke1
{[%clk 0:00:02.2]} 95... Rf3 {[%clk 0:00:07.8]} 96. Rg2+ {[%clk 0:00:02.4]}
96... Rg3 {[%clk 0:00:08.2]} 97. Kf1 {[%clk 0:00:02.1]} 97... Rxg2 {[%clk
0:00:08.1]} 98. Kxg2 {[%clk 0:00:03]} 98... Kh4 {[%clk 0:00:07.5]} 99. Kf3
{[%clk 0:00:03.3]} 99... Kh5 {[%clk 0:00:07.9]} 100. Rc4 {[%clk 0:00:02.5]}
100... Bd2 {[%clk 0:00:07.3]} 0-1

[Event "*** Titled Tuesday Blitz"]
[Site "Chess.com"]
[Date "2021.03.09"]
[Round "4"]
[White "dopolian"]
[Black "starplatinum2030"]
[Result "0-1"]
[WhiteElo "2396"]
[BlackElo "2187"]
[TimeControl "180+1"]
[EndTime "10:36:11 PST"]
[Termination "starplatinum2030 won by resignation"]

1. c4 {[%clk 0:03:00.9]} 1... c5 {[%clk 0:02:59.7]} 2. b3 {[%clk 0:03:00.7]}
2... Nc6 {[%clk 0:02:59]} 3. Bb2 {[%clk 0:03:01.1]} 3... Nf6 {[%clk 0:02:58.4]}
4. Nf3 {[%clk 0:03:00.4]} 4... g6 {[%clk 0:02:58.1]} 5. d4 {[%clk 0:02:58.5]}
5... cxd4 {[%clk 0:02:56.6]} 6. Nxd4 {[%clk 0:02:59.4]} 6... Bg7 {[%clk
0:02:57]} 7. Nc3 {[%clk 0:02:58.9]} 7... O-O {[%clk 0:02:56.4]} 8. g3 {[%clk
0:02:54.6]} 8... d5 {[%clk 0:02:49.2]} 9. cxd5 {[%clk 0:02:50.7]} 9... Nxd5
{[%clk 0:02:50.1]} 10. Nxc6 {[%clk 0:02:35.8]} 10... bxc6 {[%clk 0:02:51]} 11.
Qd2 {[%clk 0:02:30.7]} 11... Nxc3 {[%clk 0:02:47.2]} 12. Bxc3 {[%clk 0:02:31.6]}
12... Qxd2+ {[%clk 0:02:47.1]} 13. Kxd2 {[%clk 0:02:32.5]} 13... Rd8+ {[%clk
0:02:46.9]} 14. Kc2 {[%clk 0:02:30.9]} 14... Bf5+ {[%clk 0:02:46.7]} 15. Kb2
{[%clk 0:02:31.2]} 15... Rd2+ {[%clk 0:02:47.2]} 16. Ka3 {[%clk 0:02:19.9]}
16... Bxc3 {[%clk 0:02:47.7]} 17. Rc1 {[%clk 0:02:20.5]} 17... Bb2+ {[%clk
0:02:47.5]} 0-1

[Event "*** Titled Tuesday Blitz"]
[Site "Chess.com"]
[Date "2021.03.09"]
[Round "4"]
[White "PavelShkapenko"]
[Black "Gerasimenyuk_Miha"]
[Result "1-0"]
[WhiteElo "2703"]
[BlackElo "2438"]
[TimeControl "180+1"]
[EndTime "10:36:38 PST"]
[Termination "PavelShkapenko won by resignation"]

1. e4 {[%clk 0:03:00.9]} 1... d5 {[%clk 0:02:59.2]} 2. exd5 {[%clk 0:03:00.6]}
2... Qxd5 {[%clk 0:02:59.3]} 3. Nf3 {[%clk 0:03:00.2]} 3... Bg4 {[%clk
0:02:57.5]} 4. Be2 {[%clk 0:03:00.1]} 4... Nc6 {[%clk 0:02:57.8]} 5. h3 {[%clk
0:03:00]} 5... Qh5 {[%clk 0:02:57.6]} 6. O-O {[%clk 0:02:56.4]} 6... Nf6 {[%clk
0:02:57.3]} 7. d4 {[%clk 0:02:46]} 7... O-O-O {[%clk 0:02:56.2]} 8. hxg4 {[%clk
0:02:35.1]} 8... Nxg4 {[%clk 0:02:57.1]} 9. Bf4 {[%clk 0:02:35]} 9... e5 {[%clk
0:02:56.4]} 10. Bg3 {[%clk 0:02:34]} 10... e4 {[%clk 0:02:50.8]} 11. Nh2 {[%clk
0:02:31.1]} 11... f5 {[%clk 0:02:42.3]} 12. Bxg4 {[%clk 0:02:30.3]} 12... fxg4
{[%clk 0:02:35.5]} 13. c3 {[%clk 0:02:26.6]} 13... Kb8 {[%clk 0:02:29.3]} 14.
Qxg4 {[%clk 0:02:26.2]} 14... Qf7 {[%clk 0:02:26.4]} 15. Nd2 {[%clk 0:02:22.9]}
15... h5 {[%clk 0:02:25.6]} 16. Qf4 {[%clk 0:02:21.2]} 16... g5 {[%clk
0:02:22.4]} 17. Qxf7 {[%clk 0:02:20.8]} 1-0

[Event "*** Titled Tuesday Blitz"]
[Site "Chess.com"]
[Date "2021.03.09"]
[Round "4"]
[White "PrinceMurad09"]
[Black "igorkovalenko"]
[Result "0-1"]
[WhiteElo "2552"]
[BlackElo "2941"]
[TimeControl "180+1"]
[EndTime "10:37:00 PST"]
[Termination "igorkovalenko won by resignation"]

1. e4 {[%clk 0:03:00.9]} 1... c5 {[%clk 0:02:59.8]} 2. Nf3 {[%clk 0:03:01.3]}
2... Nc6 {[%clk 0:02:59.5]} 3. d4 {[%clk 0:03:01.8]} 3... cxd4 {[%clk
0:03:00.4]} 4. Nxd4 {[%clk 0:03:02.2]} 4... e5 {[%clk 0:03:00.4]} 5. Nb5 {[%clk
0:02:59.3]} 5... d6 {[%clk 0:03:00.2]} 6. g3 {[%clk 0:02:59.2]} 6... a6 {[%clk
0:02:55.1]} 7. N5c3 {[%clk 0:02:59.1]} 7... Be7 {[%clk 0:02:54.2]} 8. Bg2 {[%clk
0:02:59.3]} 8... Nf6 {[%clk 0:02:49.3]} 9. O-O {[%clk 0:02:59.1]} 9... h5 {[%clk
0:02:49.2]} 10. h4 {[%clk 0:02:55.8]} 10... Bg4 {[%clk 0:02:48.3]} 11. Qe1
{[%clk 0:02:52.9]} 11... Rc8 {[%clk 0:02:32.8]} 12. Nd5 {[%clk 0:02:53.1]} 12...
Nxd5 {[%clk 0:02:30.5]} 13. exd5 {[%clk 0:02:53.3]} 13... Nd4 {[%clk 0:02:31]}
14. Na3 {[%clk 0:02:52]} 14... Nf3+ {[%clk 0:02:19.7]} 15. Bxf3 {[%clk
0:02:49.9]} 15... Bxf3 {[%clk 0:02:20.6]} 16. c4 {[%clk 0:02:45.2]} 16... Qd7
{[%clk 0:02:17.9]} 17. Qe3 {[%clk 0:02:41.2]} 17... Qg4 {[%clk 0:02:17.9]} 18.
b3 {[%clk 0:02:34.3]} 18... Bxh4 {[%clk 0:02:15]} 19. Kh2 {[%clk 0:02:29.6]}
19... Bf6 {[%clk 0:02:10.4]} 0-1

[Event "*** Titled Tuesday Blitz"]
[Site "Chess.com"]
[Date "2021.03.09"]
[Round "4"]
[White "ErikRonka"]
[Black "PawnEatingZombie"]
[Result "1-0"]
[WhiteElo "2392"]
[BlackElo "2226"]
[TimeControl "180+1"]
[EndTime "10:37:44 PST"]
[Termination "ErikRonka won by resignation"]

1. d4 {[%clk 0:03:00.9]} 1... d5 {[%clk 0:02:59.6]} 2. c4 {[%clk 0:03:00.9]}
2... e6 {[%clk 0:02:59.6]} 3. Nc3 {[%clk 0:03:01.2]} 3... Bb4 {[%clk 0:03:00]}
4. a3 {[%clk 0:03:00.5]} 4... Bxc3+ {[%clk 0:02:59.6]} 5. bxc3 {[%clk
0:03:01.4]} 5... Nf6 {[%clk 0:02:59.6]} 6. e3 {[%clk 0:03:01.8]} 6... c6 {[%clk
0:02:59.2]} 7. cxd5 {[%clk 0:03:02.2]} 7... exd5 {[%clk 0:02:50.1]} 8. Bd3
{[%clk 0:03:02.5]} 8... O-O {[%clk 0:02:43.8]} 9. Ne2 {[%clk 0:03:03]} 9... b6
{[%clk 0:02:44.1]} 10. O-O {[%clk 0:03:02.7]} 10... Ba6 {[%clk 0:02:43.4]} 11.
f3 {[%clk 0:03:03.2]} 11... Bxd3 {[%clk 0:02:42.7]} 12. Qxd3 {[%clk 0:03:04.1]}
12... Nbd7 {[%clk 0:02:42.1]} 13. Ng3 {[%clk 0:03:04]} 13... h5 {[%clk
0:02:39.5]} 14. e4 {[%clk 0:02:59.1]} 14... h4 {[%clk 0:02:38.7]} 15. Nf5 {[%clk
0:02:58.5]} 15... Nh7 {[%clk 0:02:32.7]} 16. e5 {[%clk 0:02:53.1]} 16... Re8
{[%clk 0:02:07.8]} 17. Nd6 {[%clk 0:02:49.5]} 17... Re6 {[%clk 0:02:07]} 18. f4
{[%clk 0:02:48.6]} 18... g6 {[%clk 0:02:06.4]} 19. f5 {[%clk 0:02:47.8]} 19...
gxf5 {[%clk 0:02:06.1]} 20. Qxf5 {[%clk 0:02:36.5]} 20... Qe7 {[%clk 0:02:01.3]}
21. Nxf7 {[%clk 0:02:19.4]} 21... Rf8 {[%clk 0:01:29.2]} 22. Qg4+ {[%clk
0:02:15.1]} 1-0

[Event "*** Titled Tuesday Blitz"]
[Site "Chess.com"]
[Date "2021.03.09"]
[Round "4"]
[White "AttackSparrow"]
[Black "ChessQueen"]
[Result "0-1"]
[WhiteElo "2528"]
[BlackElo "2776"]
[TimeControl "180+1"]
[EndTime "10:37:47 PST"]
[Termination "ChessQueen won by resignation"]

1. e4 {[%clk 0:03:00.9]} 1... c6 {[%clk 0:02:58.7]} 2. d4 {[%clk 0:02:55.6]}
2... d5 {[%clk 0:02:57.8]} 3. exd5 {[%clk 0:02:56.5]} 3... cxd5 {[%clk
0:02:55.2]} 4. c4 {[%clk 0:02:54.7]} 4... Nf6 {[%clk 0:02:54.6]} 5. Nc3 {[%clk
0:02:54.3]} 5... Nc6 {[%clk 0:02:54.4]} 6. Bg5 {[%clk 0:02:53.4]} 6... Be6
{[%clk 0:02:50.5]} 7. a3 {[%clk 0:02:52.7]} 7... a6 {[%clk 0:02:45.8]} 8. Nf3
{[%clk 0:02:28.6]} 8... g6 {[%clk 0:02:40.2]} 9. Bxf6 {[%clk 0:02:23.6]} 9...
exf6 {[%clk 0:02:39.8]} 10. cxd5 {[%clk 0:02:23.9]} 10... Bxd5 {[%clk
0:02:36.6]} 11. Rc1 {[%clk 0:02:09.2]} 11... Bh6 {[%clk 0:02:20.1]} 12. Qe2+
{[%clk 0:01:58]} 12... Kf8 {[%clk 0:02:19.3]} 13. Nxd5 {[%clk 0:01:49.7]} 13...
Qxd5 {[%clk 0:02:18.2]} 14. Qc4 {[%clk 0:01:49.1]} 14... Qe4+ {[%clk 0:02:10.2]}
15. Be2 {[%clk 0:01:49.4]} 15... Bxc1 {[%clk 0:02:05.5]} 16. Qxc1 {[%clk
0:01:49.8]} 16... Kg7 {[%clk 0:02:00]} 17. d5 {[%clk 0:01:47.3]} 17... Rhe8
{[%clk 0:01:54.9]} 18. Qe3 {[%clk 0:01:40.6]} 18... Qb1+ {[%clk 0:01:50.4]} 0-1

[Event "*** Titled Tuesday Blitz"]
[Site "Chess.com"]
[Date "2021.03.09"]
[Round "4"]
[White "ParvizGasimov"]
[Black "xImpervious"]
[Result "1-0"]
[WhiteElo "2407"]
[BlackElo "2136"]
[TimeControl "180+1"]
[EndTime "10:37:52 PST"]
[Termination "ParvizGasimov won by resignation"]

1. e4 {[%clk 0:02:55.9]} 1... c5 {[%clk 0:03:00]} 2. Nf3 {[%clk 0:02:51.5]} 2...
d6 {[%clk 0:03:00.2]} 3. d4 {[%clk 0:02:52]} 3... cxd4 {[%clk 0:03:00.8]} 4.
Nxd4 {[%clk 0:02:51.1]} 4... Nf6 {[%clk 0:03:01.1]} 5. Nc3 {[%clk 0:02:51.6]}
5... a6 {[%clk 0:02:50.4]} 6. Be3 {[%clk 0:02:51.8]} 6... e5 {[%clk 0:02:50.4]}
7. Nb3 {[%clk 0:02:52.2]} 7... Be7 {[%clk 0:02:51]} 8. f3 {[%clk 0:02:50.4]}
8... Be6 {[%clk 0:02:51.4]} 9. Qd2 {[%clk 0:02:50.6]} 9... Nbd7 {[%clk
0:02:51.9]} 10. g4 {[%clk 0:02:48.8]} 10... b5 {[%clk 0:02:52.8]} 11. g5 {[%clk
0:02:48]} 11... Nb6 {[%clk 0:02:53.7]} 12. gxf6 {[%clk 0:02:43.2]} 12... Bxf6
{[%clk 0:02:50.8]} 13. Nd5 {[%clk 0:02:42.3]} 13... Nxd5 {[%clk 0:02:50]} 14.
exd5 {[%clk 0:02:43.2]} 14... Bf5 {[%clk 0:02:50.4]} 15. Bd3 {[%clk 0:02:40.9]}
15... Bh4+ {[%clk 0:02:50]} 16. Bf2 {[%clk 0:02:38.7]} 16... Bh3 {[%clk
0:02:49.9]} 17. O-O-O {[%clk 0:02:32.4]} 17... Bg2 {[%clk 0:02:47.3]} 18. Rhg1
{[%clk 0:02:27]} 18... Bxf3 {[%clk 0:02:45.6]} 19. Rde1 {[%clk 0:02:26.1]} 19...
h6 {[%clk 0:02:44.9]} 20. Rxg7 {[%clk 0:02:22.2]} 20... Bg5 {[%clk 0:02:43.7]}
21. Be3 {[%clk 0:02:17.4]} 21... Qf6 {[%clk 0:02:43.5]} 22. Rxg5 {[%clk
0:02:14.2]} 22... hxg5 {[%clk 0:02:42.6]} 23. Bxg5 {[%clk 0:02:15.1]} 23... Qg7
{[%clk 0:02:41.7]} 24. Rf1 {[%clk 0:02:14.6]} 24... Bg4 {[%clk 0:02:38.9]} 25.
Bf6 {[%clk 0:02:13.3]} 25... Qh6 {[%clk 0:02:38.7]} 26. Bxh8 {[%clk 0:02:07.2]}
26... Qxh8 {[%clk 0:02:39.6]} 27. Qg5 {[%clk 0:01:55.8]} 27... Bh5 {[%clk
0:02:27.6]} 28. Na5 {[%clk 0:01:51.6]} 28... Rc8 {[%clk 0:02:21.9]} 29. Nc6
{[%clk 0:01:47.7]} 1-0

[Event "*** Titled Tuesday Blitz"]
[Site "Chess.com"]
[Date "2021.03.09"]
[Round "4"]
[White "KarateBaby"]
[Black "kobemagic"]
[Result "0-1"]
[WhiteElo "2214"]
[BlackElo "2430"]
[TimeControl "180+1"]
[EndTime "10:38:08 PST"]
[Termination "kobemagic won by resignation"]

1. Nf3 {[%clk 0:03:00.5]} 1... Nf6 {[%clk 0:02:59.4]} 2. c4 {[%clk 0:03:01.4]}
2... g6 {[%clk 0:02:59.1]} 3. Nc3 {[%clk 0:03:01.8]} 3... Bg7 {[%clk 0:02:59.7]}
4. e4 {[%clk 0:03:02.4]} 4... d6 {[%clk 0:03:00.1]} 5. d4 {[%clk 0:03:03.3]}
5... O-O {[%clk 0:03:00.4]} 6. h3 {[%clk 0:03:04]} 6... c5 {[%clk 0:03:00.8]} 7.
d5 {[%clk 0:03:04.4]} 7... e6 {[%clk 0:03:00.6]} 8. Bd3 {[%clk 0:03:04]} 8...
exd5 {[%clk 0:03:01]} 9. exd5 {[%clk 0:03:04.6]} 9... Re8+ {[%clk 0:03:01.3]}
10. Be3 {[%clk 0:03:02.9]} 10... Nbd7 {[%clk 0:02:49.6]} 11. O-O {[%clk
0:03:01.3]} 11... a6 {[%clk 0:02:47.8]} 12. a4 {[%clk 0:03:00.3]} 12... b6
{[%clk 0:02:41.9]} 13. Qc2 {[%clk 0:02:36]} 13... Ra7 {[%clk 0:02:35.4]} 14.
Rfe1 {[%clk 0:02:19.5]} 14... Ne5 {[%clk 0:02:26.4]} 15. Nxe5 {[%clk 0:02:09.8]}
15... Rxe5 {[%clk 0:02:27.3]} 16. Re2 {[%clk 0:01:33.2]} 16... Rae7 {[%clk
0:02:22.3]} 17. Rae1 {[%clk 0:01:25.9]} 17... Nh5 {[%clk 0:02:00.7]} 18. Bf4
{[%clk 0:01:13.8]} 18... Nxf4 {[%clk 0:01:58.8]} 0-1

[Event "*** Titled Tuesday Blitz"]
[Site "Chess.com"]
[Date "2021.03.09"]
[Round "4"]
[White "andriipalchuk"]
[Black "VinzentSpitzl"]
[Result "1-0"]
[WhiteElo "2561"]
[BlackElo "2359"]
[TimeControl "180+1"]
[EndTime "10:38:48 PST"]
[Termination "andriipalchuk won by resignation"]

1. d4 {[%clk 0:03:00.9]} 1... d5 {[%clk 0:02:59.9]} 2. c4 {[%clk 0:02:53.2]}
2... e6 {[%clk 0:02:59.2]} 3. Nc3 {[%clk 0:02:53]} 3... Nf6 {[%clk 0:02:59]} 4.
Nf3 {[%clk 0:02:53.1]} 4... Be7 {[%clk 0:02:59.6]} 5. Bf4 {[%clk 0:02:49]} 5...
O-O {[%clk 0:02:56.4]} 6. e3 {[%clk 0:02:49.6]} 6... b6 {[%clk 0:02:56.6]} 7.
Rc1 {[%clk 0:02:48.6]} 7... Bb7 {[%clk 0:02:53.5]} 8. cxd5 {[%clk 0:02:45.2]}
8... exd5 {[%clk 0:02:43.1]} 9. Bd3 {[%clk 0:02:37.5]} 9... c5 {[%clk
0:02:39.2]} 10. O-O {[%clk 0:02:36.7]} 10... Nc6 {[%clk 0:02:34.2]} 11. dxc5
{[%clk 0:02:25.2]} 11... bxc5 {[%clk 0:02:35.1]} 12. Na4 {[%clk 0:02:25.5]}
12... Qa5 {[%clk 0:02:21.3]} 13. Nd2 {[%clk 0:02:22.7]} 13... Nb4 {[%clk
0:02:11.6]} 14. Nxc5 {[%clk 0:02:19]} 14... Bxc5 {[%clk 0:02:04.5]} 15. Nb3
{[%clk 0:02:17.9]} 15... Qxa2 {[%clk 0:01:54.6]} 16. Nxc5 {[%clk 0:02:16.9]}
16... Nxd3 {[%clk 0:01:49.9]} 17. Qxd3 {[%clk 0:02:11.5]} 17... Bc6 {[%clk
0:01:30.4]} 18. b4 {[%clk 0:01:44.3]} 18... a6 {[%clk 0:01:10.8]} 19. Rc2 {[%clk
0:01:39.1]} 1-0

[Event "*** Titled Tuesday Blitz"]
[Site "Chess.com"]
[Date "2021.03.09"]
[Round "4"]
[White "tandaleo"]
[Black "juancruzarias"]
[Result "1-0"]
[WhiteElo "2350"]
[BlackElo "2573"]
[TimeControl "180+1"]
[EndTime "10:38:56 PST"]
[Termination "tandaleo won by resignation"]

1. d4 {[%clk 0:03:00.9]} 1... Nf6 {[%clk 0:02:59.2]} 2. c4 {[%clk 0:03:00.4]}
2... c5 {[%clk 0:02:58.8]} 3. d5 {[%clk 0:03:00.5]} 3... e5 {[%clk 0:02:58.9]}
4. Nc3 {[%clk 0:02:58.6]} 4... d6 {[%clk 0:02:59.2]} 5. e4 {[%clk 0:02:58.5]}
5... Nbd7 {[%clk 0:02:59.4]} 6. Be2 {[%clk 0:02:56.2]} 6... Be7 {[%clk
0:02:59.6]} 7. g4 {[%clk 0:02:52.6]} 7... h6 {[%clk 0:02:57.3]} 8. Be3 {[%clk
0:02:44.1]} 8... Nh7 {[%clk 0:02:57.1]} 9. Qd2 {[%clk 0:02:41.2]} 9... Bg5
{[%clk 0:02:56.3]} 10. Bxg5 {[%clk 0:02:30.4]} 10... Qxg5 {[%clk 0:02:54.4]} 11.
h4 {[%clk 0:02:30.1]} 11... Qxd2+ {[%clk 0:02:52.4]} 12. Kxd2 {[%clk 0:02:31]}
12... a6 {[%clk 0:02:36.6]} 13. f3 {[%clk 0:02:28.1]} 13... Nhf8 {[%clk
0:02:35.8]} 14. Nh3 {[%clk 0:02:25.2]} 14... Ng6 {[%clk 0:02:24.4]} 15. h5
{[%clk 0:02:18.8]} 15... Ngf8 {[%clk 0:02:19]} 16. Nf2 {[%clk 0:02:18.2]} 16...
Nh7 {[%clk 0:02:17.5]} 17. Nd3 {[%clk 0:02:11.5]} 17... Ng5 {[%clk 0:02:16.9]}
18. a3 {[%clk 0:02:10.9]} 18... Ke7 {[%clk 0:02:04.7]} 19. b4 {[%clk 0:02:10.6]}
19... b6 {[%clk 0:01:54.1]} 20. Rhb1 {[%clk 0:01:59.8]} 20... Bb7 {[%clk
0:01:44.8]} 21. bxc5 {[%clk 0:01:46.3]} 21... dxc5 {[%clk 0:01:42.9]} 22. Na4
{[%clk 0:01:46]} 22... b5 {[%clk 0:01:36.8]} 23. Naxc5 {[%clk 0:01:38.3]} 23...
Nxc5 {[%clk 0:01:25.5]} 24. Nxc5 {[%clk 0:01:37.7]} 24... Bc8 {[%clk 0:01:23.7]}
25. cxb5 {[%clk 0:01:36.4]} 25... axb5 {[%clk 0:01:24.6]} 26. Rxb5 {[%clk
0:01:36.3]} 26... Kd6 {[%clk 0:01:24.9]} 27. Rb6+ {[%clk 0:01:23.8]} 27... Kxc5
{[%clk 0:01:24.2]} 28. Rc6+ {[%clk 0:01:23.4]} 1-0

[Event "*** Titled Tuesday Blitz"]
[Site "Chess.com"]
[Date "2021.03.09"]
[Round "4"]
[White "miredenizdogan"]
[Black "Synctel"]
[Result "1-0"]
[WhiteElo "2261"]
[BlackElo "2000"]
[TimeControl "180+1"]
[EndTime "10:39:01 PST"]
[Termination "miredenizdogan won by resignation"]

1. d4 {[%clk 0:03:00.9]} 1... Nf6 {[%clk 0:02:58.2]} 2. c4 {[%clk 0:03:01.3]}
2... e6 {[%clk 0:02:58.2]} 3. Nf3 {[%clk 0:03:00.5]} 3... Bb4+ {[%clk
0:02:58.3]} 4. Bd2 {[%clk 0:03:00.3]} 4... Qe7 {[%clk 0:02:58.8]} 5. a3 {[%clk
0:02:59.8]} 5... Bxd2+ {[%clk 0:02:57.9]} 6. Qxd2 {[%clk 0:03:00.7]} 6... a5
{[%clk 0:02:52.9]} 7. Nc3 {[%clk 0:03:00.4]} 7... d6 {[%clk 0:02:44.1]} 8. e3
{[%clk 0:02:51.9]} 8... O-O {[%clk 0:02:41.5]} 9. Be2 {[%clk 0:02:47.1]} 9... c6
{[%clk 0:02:21.7]} 10. O-O {[%clk 0:02:46.2]} 10... e5 {[%clk 0:02:21.2]} 11.
dxe5 {[%clk 0:02:39.1]} 11... dxe5 {[%clk 0:02:21]} 12. Rfd1 {[%clk 0:02:39.7]}
12... Bf5 {[%clk 0:01:10.7]} 13. Qd6 {[%clk 0:02:36.7]} 13... Qxd6 {[%clk
0:01:03.2]} 14. Rxd6 {[%clk 0:02:37.6]} 14... Nbd7 {[%clk 0:01:03.7]} 15. Rad1
{[%clk 0:02:36.2]} 15... Rfe8 {[%clk 0:00:48]} 16. e4 {[%clk 0:02:26.8]} 16...
Be6 {[%clk 0:00:37.9]} 17. Na4 {[%clk 0:01:58.5]} 17... Nc5 {[%clk 0:00:16.1]}
18. Nxc5 {[%clk 0:01:57.6]} 1-0